[Event "28th Hit Open-A 2024"]
[Site "Nova Gorica"]
[Date "2024.01.26"]
[Round "1.30"]
[White "Papler, Peter"]
[Black "Horvath, Andras"]
[Result "0-1"]
[ECO "B22"]
[WhiteElo "1691"]
[BlackElo "1901"]
[Annotator "NA COMBH RC"]
[PlyCount "89"]
[EventDate "2024.01.22"]
[EventType "swiss"]
[EventCountry "SLO"]
[SourceTitle "playchess.com"]
[Source "ChessBase"]
[SourceQuality "1"]
[TimeControl "5400+30"]

1. d3 {[%emt 0:00:09]} d5 {[%emt 0:00:30]} 2. Nf3 {[%emt 0:00:08]} Nf6 {[%emt 0:01:09]} 3. c3 {[%emt 0:00:36]} c5 {[%emt 0:07:19]} 4. Qc2 {[%emt 0:00:16]} Nc6 {[%emt 0:01:45]} 5. e4 {[%emt 0:00:26]} dxe4 {[%emt 0:00:52]} 6. dxe4 {[%emt 0:00:19]} Bg4 {[%emt 0:08:55]} 7. Be2 {[%emt 0:00:43]} e6 {[%emt 0:08:21]} 8. Bg5 {[%emt 0:04:36]} Be7 {[%emt 0:00:00]} 9. Nbd2 {[%emt 0:00:45]} O-O {[%emt 0:00:00]} 10. O-O {[%emt 0:00:56]} Qc7 {[%emt 0:00:32]} 11. Rfe1 {[%emt 0:00:44]} Rfd8 {[%emt 0:05:35]} 12. Rad1 {[%emt 0:07:07]} a6 {[%emt 0:06:02]} 13. h3 {[%emt 0:00:00]} Bh5 {[%emt 0:01:12]} 14. Nf1 {[%emt 0:01:22]} Bg6 {[%emt 0:09:31]} 15. Ng3 {[%emt 0:00:26]} h6 {[%emt 0:00:58]} 16. Bd2 {[%emt 0:02:01]} Bd6 {[%emt 0:02:03]} 17. Qc1 {[%emt 0:07:04]} Bxg3 {[%emt 0:02:08]} 18. fxg3 {[%emt 0:00:15]} Nxe4 {[%emt 0:02:04]} 19. Bf4 {[%emt 0:03:56]} e5 {[%emt 0:01:12]} 20. Bd3 {[%emt 0:01:13]} exf4 {[%emt 0:04:19]} 21. Bxe4 {[%emt 0:00:12]} Bxe4 {[%emt 0:00:41]} 22. Rxe4 {[%emt 0:00:09]} Rxd1+ {[%emt 0:00:39]} 23. Qxd1 {[%emt 0:00:09]} fxg3 {[%emt 0:01:49]} 24. Qe1 {[%emt 0:00:23]} Rd8 {[%emt 0:02:18]} 25. Rg4 {[%emt 0:02:10]} Ne5 {[%emt 0:04:47]} 26. Nxe5 {[%emt 0:13:52]} Qxe5 {[%emt 0:00:11]} 27. Qxg3 {[%emt 0:00:22]} Qxg3 {[%emt 0:01:01]} 28. Rxg3 {[%emt 0:00:08]} Rd2 {[%emt 0:00:23]} 29. b4 {[%emt 0:01:11]} cxb4 {[%emt 0:00:55]} 30. cxb4 {[%emt 0:00:16]} Rxa2 {[%emt 0:00:23]} 31. Rb3 {[%emt 0:00:39]} b6 {[%emt 0:01:28]} 32. Kh2 {[%emt 0:00:20]} g6 {[%emt 0:06:10]} 33. Kg3 {[%emt 0:00:06]} Kg7 {[%emt 0:00:40]} 34. Kf3 {[%emt 0:00:05]} Rd2 {[%emt 0:02:46]} 35. g3 {[%emt 0:00:40]} Rd5 {[%emt 0:00:50]} 36. Ke4 {[%emt 0:01:12]} Rb5 {[%emt 0:00:03]} 37. Kd4 {[%emt 0:00:43]} a5 {[%emt 0:00:01]} 38. Kc4 {[%emt 0:00:24]} Rxb4+ {[%emt 0:00:02]} 39. Rxb4 {[%emt 0:00:15]} axb4 {[%emt 0:00:09]} 40. Kxb4 {[%emt 0:00:06]} Kf6 {[%emt 0:00:18]} 41. Kb5 {[%emt 0:00:04]} Ke5 {[%emt 0:00:14]} 42. Kxb6 {[%emt 0:00:08]} f5 {[%emt 0:01:05]} 43. Kc5 {[%emt 0:00:08]} f4 {[%emt 0:00:15]} 44. gxf4+ {[%emt 0:00:15]} Kxf4 {[%emt 0:00:02] Check Result:-#16} 45. Kd4 {[%emt 0:00:22]} 0-1

[Event "28th Hit Open-A 2024"]
[Site "Nova Gorica"]
[Date "2024.01.26"]
[Round "1.31"]
[White "Hozjan, Erik"]
[Black "Zlatanovic, Srdjan"]
[Result "1/2-1/2"]
[ECO "B23"]
[WhiteElo "1897"]
[BlackElo "1675"]
[Annotator "NA COMBH"]
[PlyCount "76"]
[EventDate "2024.01.22"]
[EventType "swiss"]
[EventCountry "SLO"]
[SourceTitle "playchess.com"]
[Source "ChessBase"]
[SourceQuality "1"]
[TimeControl "5400+30"]

1. e4 {[%emt 0:00:03]} c5 {[%emt 0:02:51]} 2. Nc3 {[%emt 0:00:10]} a6 {[%emt 0:00:13]} 3. a4 {[%emt 0:00:15]} b6 {[%emt 0:00:12]} 4. Bc4 {[%emt 0:00:12]} d6 {[%emt 0:00:19]} 5. f4 {[%emt 0:04:30]} Nd7 {[%emt 0:00:24]} 6. Qh5 {[%emt 0:06:11]} Nh6 {[%emt 0:02:41]} 7. f5 {[%emt 0:00:35]} Ne5 {[%emt 0:01:21]} 8. Bd5 {[%emt 0:00:09]} g6 {[%emt 0:00:52]} 9. Qh4 {[%emt 0:06:02]} Ra7 {[%emt 0:01:13]} 10. d4 {[%emt 0:07:43]} cxd4 {[%emt 0:00:26]} 11. Bxh6 {[%emt 0:00:07]} dxc3 {[%emt 0:00:16]} 12. bxc3 {[%emt 0:04:21]} Bxh6 {[%emt 0:10:49]} 13. Qxh6 {[%emt 0:00:06]} Qc7 {[%emt 0:00:40]} 14. Ne2 {[%emt 0:00:19]} gxf5 {[%emt 0:02:31]} 15. Qg7 {[%emt 0:02:17]} Rf8 {[%emt 0:00:20]} 16. Qxh7 {[%emt 0:00:07]} e6 {[%emt 0:00:59]} 17. Bb3 {[%emt 0:00:06]} fxe4 {[%emt 0:00:36]} 18. Rd1 {[%emt 0:08:36]} Qc5 {[%emt 0:06:34]} 19. Rd4 {[%emt 0:01:02]} b5 {[%emt 0:02:12]} 20. O-O {[%emt 0:09:13]} Ng4 {[%emt 0:12:31]} 21. h3 {[%emt 0:04:17]} e5 {[%emt 0:07:24]} 22. hxg4 {[%emt 0:00:10]} exd4 {[%emt 0:01:29]} 23. cxd4 {[%emt 0:00:20]} Qg5 {[%emt 0:00:45]} 24. Qxe4+ {[%emt 0:00:14]} Qe7 {[%emt 0:01:26]} 25. Qc6+ {[%emt 0:13:00]} Qd7 {[%emt 0:00:03]} 26. axb5 {[%emt 0:01:11]} axb5 {[%emt 0:00:23]} 27. Qd5 {[%emt 0:01:18]} Qe7 {[%emt 0:02:03]} 28. Qxb5+ {[%emt 0:01:06]} Kd8 {[%emt 0:01:41]} 29. Qb6+ {[%emt 0:05:12]} Ke8 {[%emt 0:00:09]} 30. Re1 {[%emt 0:03:43]} Rh8 {[%emt 0:01:46]} 31. Kf2 {[%emt 0:06:54]} Qf6+ {[%emt 0:05:08]} 32. Nf4+ {[%emt 0:00:26]} Re7 {[%emt 0:01:22]} 33. Ba4+ {[%emt 0:11:50]} Kf8 {[%emt 0:00:13]} 34. Qd8+ {[%emt 0:00:06]} Kg7 {[%emt 0:00:11]} 35. Qxe7 {[%emt 0:00:05]} Qxf4+ {[%emt 0:00:19]} 36. Ke2 {[%emt 0:02:30]} Ba6+ {[%emt 0:00:18]} 37. Kd1 {[%emt 0:00:13]} Qxd4+ {[%emt 0:00:45]} 38. Kc1 {[%emt 0:00:04]} Qxa4 1/2-1/2

[Event "28th Hit Open-A 2024"]
[Site "Nova Gorica"]
[Date "2024.01.26"]
[Round "1.32"]
[White "Vodnik, Val"]
[Black "Kukushkin, Ivan"]
[Result "0-1"]
[ECO "E04"]
[WhiteElo "1661"]
[BlackElo "1890"]
[Annotator "NA COMBH"]
[PlyCount "120"]
[EventDate "2024.01.22"]
[EventType "swiss"]
[EventCountry "SLO"]
[SourceTitle "playchess.com"]
[Source "ChessBase"]
[SourceQuality "1"]
[TimeControl "5400+30"]

1. d4 {[%emt 0:00:02]} Nf6 {[%emt 0:00:40]} 2. c4 {[%emt 0:00:07]} e6 {[%emt 0:00:06]} 3. Nf3 {[%emt 0:00:06]} d5 {[%emt 0:00:09]} 4. g3 {[%emt 0:00:04]} dxc4 {[%emt 0:00:09]} 5. Bg2 {[%emt 0:00:21]} c6 {[%emt 0:00:25]} 6. O-O {[%emt 0:02:49]} b5 {[%emt 0:00:47]} 7. b3 {[%emt 0:03:32]} cxb3 {[%emt 0:01:29]} 8. axb3 {[%emt 0:00:18]} Bb7 {[%emt 0:00:18]} 9. Bg5 {[%emt 0:07:25]} Be7 {[%emt 0:02:04]} 10. Nc3 {[%emt 0:00:41]} Nd5 {[%emt 0:01:41]} 11. Bxe7 {[%emt 0:00:47]} Nxe7 {[%emt 0:00:36]} 12. Ne4 {[%emt 0:00:34]} Qc7 {[%emt 0:01:02]} 13. Nc5 {[%emt 0:00:37]} Nd7 {[%emt 0:00:16]} 14. Nxb7 {[%emt 0:03:29]} Qxb7 {[%emt 0:00:59]} 15. Qd3 {[%emt 0:00:21]} h6 {[%emt 0:01:54]} 16. Rfc1 {[%emt 0:05:02]} O-O {[%emt 0:00:33]} 17. Nd2 {[%emt 0:00:48]} Nf6 {[%emt 0:02:03]} 18. Rc5 {[%emt 0:03:12]} Rfd8 {[%emt 0:04:03]} 19. Rac1 {[%emt 0:13:49]} Rac8 {[%emt 0:01:09]} 20. Ne4 {[%emt 0:03:49]} Nxe4 {[%emt 0:01:23]} 21. Bxe4 {[%emt 0:00:07]} Qb6 {[%emt 0:01:39]} 22. Qc3 {[%emt 0:01:37]} Rd6 {[%emt 0:01:07]} 23. b4 {[%emt 0:00:20]} Nd5 {[%emt 0:00:35]} 24. Bxd5 {[%emt 0:00:27]} exd5 {[%emt 0:00:15]} 25. Qd3 {[%emt 0:01:00]} a6 {[%emt 0:00:44]} 26. Ra1 {[%emt 0:01:22]} Ra8 {[%emt 0:01:25]} 27. Qc3 {[%emt 0:00:55]} Re6 {[%emt 0:00:46]} 28. e3 {[%emt 0:01:25]} Rd6 {[%emt 0:02:29]} 29. Kg2 {[%emt 0:00:22]} Qb7 {[%emt 0:02:13]} 30. Rc1 {[%emt 0:01:06]} Rc8 {[%emt 0:00:49]} 31. Kg1 {[%emt 0:00:16]} h5 {[%emt 0:00:21]} 32. h4 {[%emt 0:00:07]} Qd7 {[%emt 0:00:07]} 33. Qd2 {[%emt 0:02:08]} Qh3 {[%emt 0:02:42]} 34. Qd1 {[%emt 0:01:02]} Qf5 {[%emt 0:01:18]} 35. R1c2 {[%emt 0:01:21]} Rg6 {[%emt 0:02:36]} 36. Kg2 {[%emt 0:03:20]} Rf6 {[%emt 0:00:59]} 37. Ra2 {[%emt 0:04:13]} Re8 {[%emt 0:01:45]} 38. Qc2 {[%emt 0:00:28]} Qf3+ {[%emt 0:00:05]} 39. Kg1 {[%emt 0:00:34]} Rg6 {[%emt 0:10:26]} 40. Qe2 {[%emt 0:04:51]} Qf5 {[%emt 0:01:27]} 41. Kh2 {[%emt 0:02:46]} Rf6 {[%emt 0:07:49]} 42. Qc2 {[%emt 0:02:01]} Qc8 {[%emt 0:02:36]} 43. Qe2 {[%emt 0:00:32]} Rf5 {[%emt 0:01:13]} 44. Qc2 {[%emt 0:00:14]} Re4 {[%emt 0:00:37]} 45. Rxc6 {[%emt 0:02:43]} Rxf2+ {[%emt 0:00:09]} 46. Qxf2 {[%emt 0:00:26]} Qxc6 {[%emt 0:00:06]} 47. Rc2 {[%emt 0:00:02]} Qd7 {[%emt 0:00:05]} 48. Qf3 {[%emt 0:00:23]} Qe6 {[%emt 0:00:23]} 49. Rc3 {[%emt 0:03:49]} g6 {[%emt 0:00:26]} 50. Qf2 {[%emt 0:00:08]} Qe7 {[%emt 0:00:08]} 51. Rb3 {[%emt 0:00:38]} Qc7 {[%emt 0:00:09]} 52. Kg2 {[%emt 0:00:44]} Re6 {[%emt 0:00:22]} 53. Rb2 {[%emt 0:00:44]} Rc6 {[%emt 0:00:41]} 54. Qd2 {[%emt 0:01:04]} Rc1 {[%emt 0:01:02]} 55. Ra2 {[%emt 0:01:08]} Qc4 {[%emt 0:01:24]} 56. Qf2 {[%emt 0:00:54]} Qd3 {[%emt 0:00:40]} 57. Qf4 {[%emt 0:03:29]} Qd1 {[%emt 0:00:54]} 58. Qb8+ {[%emt 0:01:33]} Kh7 {[%emt 0:00:06]} 59. Qf4 {[%emt 0:00:06]} Qh1+ {[%emt 0:00:07]} 60. Kf2 {[%emt 0:00:01]} Qf1# {[%emt 0:00:16]} 0-1

[Event "28th Hit Open-A 2024"]
[Site "Nova Gorica"]
[Date "2024.01.26"]
[Round "1.33"]
[White "Atakay, Mustafa"]
[Black "Mazzi, Leonardo"]
[Result "0-1"]
[ECO "E09"]
[WhiteElo "1889"]
[BlackElo "1647"]
[Annotator "NA COMBH"]
[PlyCount "92"]
[EventDate "2024.01.22"]
[EventType "swiss"]
[EventCountry "SLO"]
[SourceTitle "playchess.com"]
[Source "ChessBase"]
[SourceQuality "1"]
[TimeControl "5400+30"]

1. d4 {[%emt 0:00:05]} d5 {[%emt 0:00:02]} 2. c4 {[%emt 0:00:13]} e6 {[%emt 0:00:01]} 3. g3 {[%emt 0:00:42]} Nf6 {[%emt 0:00:10]} 4. Bg2 {[%emt 0:00:05]} Be7 {[%emt 0:00:13]} 5. Nf3 {[%emt 0:00:09]} O-O {[%emt 0:00:09]} 6. Qc2 {[%emt 0:00:16]} Nbd7 {[%emt 0:01:23]} 7. O-O {[%emt 0:01:54]} c6 {[%emt 0:00:11]} 8. Bf4 {[%emt 0:03:44]} Nh5 {[%emt 0:12:17]} 9. Bc1 {[%emt 0:03:29]} Nhf6 {[%emt 0:00:43]} 10. Nbd2 {[%emt 0:00:07]} b6 {[%emt 0:00:12]} 11. e4 {[%emt 0:01:37]} dxc4 {[%emt 0:00:37]} 12. Nxc4 {[%emt 0:09:42]} Bb7 {[%emt 0:01:02]} 13. Bg5 {[%emt 0:03:13]} c5 {[%emt 0:04:15]} 14. e5 {[%emt 0:01:51]} Ne8 {[%emt 0:03:38]} 15. h4 {[%emt 0:02:20]} h6 {[%emt 0:06:40]} 16. Be3 {[%emt 0:07:00]} cxd4 {[%emt 0:08:42]} 17. Bxd4 {[%emt 0:02:14]} Rc8 {[%emt 0:01:03]} 18. Qe2 {[%emt 0:02:35]} Qc7 {[%emt 0:06:50]} 19. Rac1 {[%emt 0:03:36]} Qb8 {[%emt 0:00:21]} 20. Rfd1 {[%emt 0:04:56]} Nc5 {[%emt 0:01:29]} 21. b4 {[%emt 0:02:36]} Na6 {[%emt 0:02:50]} 22. a3 {[%emt 0:00:09]} Rd8 {[%emt 0:06:27]} 23. Bb2 {[%emt 0:02:45]} Nac7 {[%emt 0:02:40]} 24. Nd4 {[%emt 0:08:17]} Bxg2 {[%emt 0:00:47]} 25. Kxg2 {[%emt 0:00:05]} Nd5 {[%emt 0:01:36]} 26. Kg1 {[%emt 0:03:19]} Qb7 {[%emt 0:01:08]} 27. f4 {[%emt 0:04:25]} g6 {[%emt 0:06:05]} 28. Rf1 {[%emt 0:06:23]} Ng7 {[%emt 0:00:54]} 29. Qf2 {[%emt 0:05:42]} h5 {[%emt 0:02:25]} 30. Qf3 {[%emt 0:02:10]} Rd7 {[%emt 0:01:24]} 31. Kf2 {[%emt 0:01:51]} Rfd8 {[%emt 0:02:22]} 32. Rc2 {[%emt 0:01:36]} Qa8 {[%emt 0:05:39]} 33. Nd2 {[%emt 0:05:02]} Bf8 {[%emt 0:04:45]} 34. Rfc1 {[%emt 0:01:53]} a5 {[%emt 0:03:15]} 35. Nc6 {[%emt 0:02:00]} Re8 {[%emt 0:00:43]} 36. b5 {[%emt 0:00:11]} Nf5 {[%emt 0:00:38]} 37. Ne4 {[%emt 0:00:41]} Nfe3 {[%emt 0:02:54]} 38. Rd2 {[%emt 0:00:30]} Nf5 {[%emt 0:04:07]} 39. Rxd5 {[%emt 0:01:37]} Rxd5 {[%emt 0:00:51]} 40. Nf6+ {[%emt 0:00:08]} Kg7 {[%emt 0:00:33]} 41. Nxd5 {[%emt 0:00:16]} exd5 {[%emt 0:00:53]} 42. Qxd5 {[%emt 0:00:17]} Bc5+ {[%emt 0:00:28]} 43. Kf3 {[%emt 0:00:59]} Kg8 {[%emt 0:01:24]} 44. Re1 {[%emt 0:00:42]} Qc8 {[%emt 0:00:27]} 45. Re2 {[%emt 0:01:29]} Nxh4+ {[%emt 0:01:22]} 46. gxh4 {[%emt 0:00:58]} Qh3+ {[%emt 0:00:27]} 0-1

[Event "28th Hit Open-A 2024"]
[Site "Nova Gorica"]
[Date "2024.01.26"]
[Round "1.34"]
[White "Deschi, Leonardo Simone"]
[Black "Kekic, Urban"]
[Result "1/2-1/2"]
[ECO "B13"]
[WhiteElo "1639"]
[BlackElo "1885"]
[Annotator "NA COMBH"]
[PlyCount "102"]
[EventDate "2024.01.22"]
[EventType "swiss"]
[EventCountry "SLO"]
[SourceTitle "playchess.com"]
[Source "ChessBase"]
[SourceQuality "1"]
[TimeControl "5400+30"]

1. e4 {[%emt 0:00:05]} c6 {[%emt 0:00:08]} 2. d4 {[%emt 0:00:07]} d5 {[%emt 0:00:10]} 3. exd5 {[%emt 0:00:07]} cxd5 {[%emt 0:00:10]} 4. c4 {[%emt 0:00:13]} Nf6 {[%emt 0:00:26]} 5. Nc3 {[%emt 0:00:06]} Nc6 {[%emt 0:00:26]} 6. Nf3 {[%emt 0:00:11]} Bg4 {[%emt 0:02:09]} 7. cxd5 {[%emt 0:00:24]} Nxd5 {[%emt 0:00:20]} 8. Qb3 {[%emt 0:00:10]} Bxf3 {[%emt 0:01:38]} 9. gxf3 {[%emt 0:00:09]} e6 {[%emt 0:01:37]} 10. Qxb7 {[%emt 0:00:41]} Nxd4 {[%emt 0:00:29]} 11. Bb5+ {[%emt 0:00:12]} Nxb5 {[%emt 0:00:10]} 12. Qxb5+ {[%emt 0:00:21]} Qd7 {[%emt 0:01:27]} 13. Qxd7+ {[%emt 0:00:11]} Kxd7 {[%emt 0:00:07]} 14. Nxd5 {[%emt 0:00:08]} exd5 {[%emt 0:00:13]} 15. Be3 {[%emt 0:00:13]} Bb4+ {[%emt 0:04:02]} 16. Ke2 {[%emt 0:00:08]} Rhc8 {[%emt 0:03:34]} 17. Rac1 {[%emt 0:01:12]} Bd6 {[%emt 0:10:49]} 18. Rhd1 {[%emt 0:05:35]} Rxc1 {[%emt 0:19:11]} 19. Rxc1 {[%emt 0:00:10]} Rb8 {[%emt 0:12:07]} 20. Bd4 {[%emt 0:07:14]} g6 {[%emt 0:03:03]} 21. Kd3 {[%emt 0:06:14]} a6 {[%emt 0:05:00]} 22. b3 {[%emt 0:11:52]} h5 {[%emt 0:02:37]} 23. h3 {[%emt 0:00:07]} Rb4 {[%emt 0:03:21]} 24. Kc3 {[%emt 0:07:30]} Rb8 {[%emt 0:02:42]} 25. Kd3 {[%emt 0:00:33]} Rb7 {[%emt 0:02:15]} 26. Rc2 {[%emt 0:04:37]} Rb8 {[%emt 0:00:31]} 27. Rc1 {[%emt 0:01:41]} Re8 {[%emt 0:01:04]} 28. Be3 {[%emt 0:00:43]} Rb8 {[%emt 0:08:03]} 29. Bd2 {[%emt 0:03:03]} Rb5 {[%emt 0:01:51]} 30. Rc2 {[%emt 0:09:13]} Be7 {[%emt 0:03:45]} 31. Rc1 {[%emt 0:02:01]} Ba3 {[%emt 0:01:07]} 32. Rc2 {[%emt 0:04:12]} Be7 {[%emt 0:00:21]} 33. Rc1 {[%emt 0:02:43]} Bc5 {[%emt 0:03:39]} 34. Be3 {[%emt 0:07:39]} Be7 {[%emt 0:01:02]} 35. Bd2 {[%emt 0:01:18]} Bh4 {[%emt 0:02:15]} 36. Be3 {[%emt 0:01:46]} Be7 {[%emt 0:00:43]} 37. Bd2 {[%emt 0:01:26]} Bd8 {[%emt 0:00:52]} 38. Rc2 {[%emt 0:03:31]} Bh4 {[%emt 0:01:48]} 39. Be3 {[%emt 0:02:37]} Be7 {[%emt 0:00:00]} 40. Bd2 {[%emt 0:01:51]} Bd8 {[%emt 0:01:42]} 41. Rc1 {[%emt 0:00:20]} Be7 {[%emt 0:00:21]} 42. Rc2 {[%emt 0:01:07]} Bd8 {[%emt 0:00:27]} 43. Rc1 {[%emt 0:00:23]} Bh4 {[%emt 0:00:47]} 44. Be3 {[%emt 0:00:52]} Be7 {[%emt 0:00:49]} 45. Bd2 {[%emt 0:02:05]} Ba3 {[%emt 0:00:47]} 46. Rc2 {[%emt 0:00:23]} Be7 {[%emt 0:00:51]} 47. Rc1 {[%emt 0:00:12]} Bd8 {[%emt 0:00:36]} 48. Rc2 {[%emt 0:00:35]} Bh4 {[%emt 0:00:26]} 49. Be3 {[%emt 0:00:17]} Be7 {[%emt 0:00:08]} 50. Bd2 {[%emt 0:01:20]} Bh4 {[%emt 0:00:34]} 51. Be3 $11 {[%emt 0:00:54]} Be7 {[%emt 0:00:06]} 1/2-1/2

[Event "28th Hit Open-A 2024"]
[Site "Nova Gorica"]
[Date "2024.01.26"]
[Round "1.35"]
[White "Veselic, Maks"]
[Black "Gergolet, Jan"]
[Result "1-0"]
[ECO "B22"]
[WhiteElo "1874"]
[BlackElo "1632"]
[Annotator "NA RC COMBH"]
[PlyCount "69"]
[EventDate "2024.01.22"]
[EventType "swiss"]
[EventCountry "SLO"]
[SourceTitle "playchess.com"]
[Source "ChessBase"]
[SourceQuality "1"]
[TimeControl "5400+30"]

1. e4 {[%emt 0:00:04]} c5 {[%emt 0:00:16]} 2. Nf3 {[%emt 0:00:06]} Nc6 {[%emt 0:00:06]} 3. c3 {[%emt 0:01:53]} d5 {[%emt 0:00:15]} 4. exd5 {[%emt 0:00:07]} Qxd5 {[%emt 0:00:06]} 5. d4 {[%emt 0:00:11]} Nf6 {[%emt 0:00:20]} 6. Be3 {[%emt 0:00:40]} cxd4 {[%emt 0:00:23]} 7. cxd4 {[%emt 0:00:25]} Qa5+ {[%emt 0:02:59]} 8. Nc3 {[%emt 0:01:44]} g6 {[%emt 0:00:16]} 9. Bc4 {[%emt 0:01:59]} Bg7 {[%emt 0:00:42]} 10. O-O {[%emt 0:01:37]} O-O {[%emt 0:00:12]} 11. h3 {[%emt 0:03:08]} Qb4 {[%emt 0:14:20]} 12. Qe2 {[%emt 0:04:02]} Na5 {[%emt 0:04:18]} 13. Bd3 {[%emt 0:02:42]} Be6 {[%emt 0:02:01]} 14. a3 {[%emt 0:04:07]} Qd6 {[%emt 0:06:27]} 15. Ne5 {[%emt 0:04:17]} Nb3 {[%emt 0:07:13]} 16. Rad1 {[%emt 0:02:21]} a6 {[%emt 0:05:22]} 17. Bc2 {[%emt 0:03:02]} Rac8 {[%emt 0:13:47]} 18. d5 {[%emt 0:05:08]} Qxe5 {[%emt 0:09:30]} 19. Bxb3 {[%emt 0:00:48]} Bd7 {[%emt 0:01:03]} 20. Qd2 {[%emt 0:03:26]} Qh5 {[%emt 0:03:20]} 21. Bf4 {[%emt 0:03:09]} Rfd8 {[%emt 0:02:18]} 22. Rde1 {[%emt 0:02:26]} Be6 {[%emt 0:04:39]} 23. Re5 {[%emt 0:02:22]} Qh4 {[%emt 0:02:01]} 24. Bg5 {[%emt 0:00:35]} Bh6 {[%emt 0:00:43]} 25. Bxh4 {[%emt 0:03:08]} Bxd2 {[%emt 0:00:07]} 26. dxe6 {[%emt 0:00:03]} Bxc3 {[%emt 0:00:21]} 27. exf7+ {[%emt 0:00:06]} Kf8 {[%emt 0:00:01]} 28. bxc3 {[%emt 0:00:10]} Rxc3 {[%emt 0:00:02]} 29. Bxf6 {[%emt 0:03:36]} exf6 {[%emt 0:00:12]} 30. Re3 {[%emt 0:00:10]} Rxe3 31. fxe3 {[%emt 0:00:01]} Rd3 {[%emt 0:00:18]} 32. Bc4 {[%emt 0:00:17]} Rc3 {[%emt 0:00:15]} 33. Bd5 {[%emt 0:00:06]} Rd3 {[%emt 0:00:15]} 34. e4 {[%emt 0:00:10]} f5 {[%emt 0:00:01]} 35. Rc1 {[%emt 0:00:06]} 1-0

[Event "28th Hit Open-A 2024"]
[Site "Nova Gorica"]
[Date "2024.01.26"]
[Round "1.36"]
[White "Mihelj, Edvard"]
[Black "Budai, Federico"]
[Result "0-1"]
[ECO "C24"]
[WhiteElo "1618"]
[BlackElo "1861"]
[Annotator "NA RC COMBH"]
[PlyCount "90"]
[EventDate "2024.01.22"]
[EventType "swiss"]
[EventCountry "SLO"]
[SourceTitle "playchess.com"]
[Source "ChessBase"]
[SourceQuality "1"]
[TimeControl "5400+30"]

1. e4 {[%emt 0:00:01]} e5 {[%emt 0:00:15]} 2. Bc4 {[%emt 0:00:17]} Nc6 {[%emt 0:01:39]} 3. a3 {[%emt 0:00:34]} Nf6 {[%emt 0:00:26]} 4. d3 {[%emt 0:00:28]} Bc5 {[%emt 0:01:05]} 5. h3 {[%emt 0:01:17]} d6 {[%emt 0:00:19]} 6. Nf3 {[%emt 0:00:39]} h6 {[%emt 0:01:20]} 7. c3 {[%emt 0:02:36]} Bb6 {[%emt 0:01:49]} 8. Be3 {[%emt 0:01:16]} Ne7 {[%emt 0:02:43]} 9. Nh2 {[%emt 0:02:44]} c6 {[%emt 0:01:40]} 10. b4 {[%emt 0:00:51]} a5 {[%emt 0:05:37]} 11. O-O {[%emt 0:02:12]} axb4 {[%emt 0:02:21]} 12. cxb4 {[%emt 0:00:30]} d5 {[%emt 0:00:41]} 13. exd5 {[%emt 0:02:21]} cxd5 {[%emt 0:01:11]} 14. Bb5+ {[%emt 0:02:39]} Bd7 {[%emt 0:06:58]} 15. Bxd7+ {[%emt 0:00:19]} Nxd7 {[%emt 0:00:16]} 16. Bxb6 {[%emt 0:02:08]} Qxb6 {[%emt 0:00:46]} 17. Nc3 {[%emt 0:00:29]} O-O {[%emt 0:05:04]} 18. Qf3 {[%emt 0:02:14]} Qe6 {[%emt 0:11:53]} 19. Ng4 {[%emt 0:02:04]} f5 {[%emt 0:01:54]} 20. Nh2 {[%emt 0:02:06]} Nb6 {[%emt 0:21:46]} 21. Rfe1 {[%emt 0:02:15]} e4 {[%emt 0:07:20]} 22. Qe2 {[%emt 0:04:46]} Ng6 {[%emt 0:12:01]} 23. Nb5 {[%emt 0:05:14]} Qd7 {[%emt 0:05:00]} 24. dxe4 {[%emt 0:03:31]} fxe4 {[%emt 0:00:27]} 25. Nd4 {[%emt 0:02:51]} Nc4 {[%emt 0:01:59]} 26. Qg4 {[%emt 0:01:41]} Qxg4 {[%emt 0:02:46]} 27. Nxg4 {[%emt 0:00:10]} Rxa3 {[%emt 0:00:09]} 28. Rxa3 {[%emt 0:04:54]} Nxa3 {[%emt 0:00:02]} 29. Ra1 {[%emt 0:00:29]} Nc4 {[%emt 0:00:15]} 30. Ra7 {[%emt 0:00:38]} Rf7 {[%emt 0:00:36]} 31. g3 {[%emt 0:01:44]} Nge5 {[%emt 0:02:37]} 32. Ne6 {[%emt 0:06:25]} Nxg4 {[%emt 0:02:44]} 33. hxg4 {[%emt 0:00:15]} Re7 {[%emt 0:00:17]} 34. Ra8+ {[%emt 0:01:27]} Kf7 {[%emt 0:00:08]} 35. Nd4 {[%emt 0:00:45]} Rc7 {[%emt 0:00:57]} 36. Kf1 {[%emt 0:00:47]} Ne5 {[%emt 0:00:44]} 37. Nf5 {[%emt 0:02:54]} Rd7 {[%emt 0:00:30]} 38. Ra5 {[%emt 0:00:42]} Nxg4 {[%emt 0:00:18]} 39. Nd4 {[%emt 0:00:52]} Ne5 {[%emt 0:00:35]} 40. Ke2 {[%emt 0:00:54]} b6 {[%emt 0:00:35]} 41. Rb5 {[%emt 0:01:08]} Nc4 {[%emt 0:00:06]} 42. Nc2 {[%emt 0:02:24]} d4 {[%emt 0:00:53]} 43. Ne1 {[%emt 0:01:51]} d3+ {[%emt 0:00:14]} 44. Kd1 {[%emt 0:00:59]} d2 {[%emt 0:00:07]} 45. Ke2 {[%emt 0:03:07]} d1=Q+ {[%emt 0:00:10]} 0-1

[Event "28th Hit Open-A 2024"]
[Site "Nova Gorica"]
[Date "2024.01.26"]
[Round "1.38"]
[White "Petrovcic, Cvetko"]
[Black "Tonel, Giulia"]
[Result "0-1"]
[ECO "C36"]
[WhiteElo "1611"]
[BlackElo "1851"]
[Annotator "NA RC COMBH"]
[PlyCount "64"]
[EventDate "2024.01.22"]
[EventType "swiss"]
[EventCountry "SLO"]
[SourceTitle "playchess.com"]
[Source "ChessBase"]
[SourceQuality "1"]
[TimeControl "5400+30"]

1. e4 {[%emt 0:00:04]} e5 {[%emt 0:00:12]} 2. f4 {[%emt 0:00:09]} d5 {[%emt 0:01:57]} 3. exd5 {[%emt 0:01:06]} exf4 {[%emt 0:00:46]} 4. Nf3 {[%emt 0:00:26]} Nf6 {[%emt 0:02:43]} 5. Bc4 {[%emt 0:01:13]} Qe7+ {[%emt 0:05:37]} 6. Qe2 {[%emt 0:00:30]} Qxe2+ {[%emt 0:00:56]} 7. Kxe2 {[%emt 0:00:47]} Bd6 {[%emt 0:00:54]} 8. Re1 {[%emt 0:00:21]} O-O {[%emt 0:04:13]} 9. Nc3 {[%emt 0:00:55]} a6 {[%emt 0:02:14]} 10. Kf2 {[%emt 0:01:47]} b5 {[%emt 0:01:58]} 11. Bb3 {[%emt 0:00:30]} Bb7 {[%emt 0:01:25]} 12. Ng5 {[%emt 0:02:08]} Ng4+ {[%emt 0:04:35]} 13. Kf1 {[%emt 0:05:12]} Nxh2+ {[%emt 0:01:10]} 14. Kg1 {[%emt 0:00:09]} Ng4 {[%emt 0:00:50]} 15. Nce4 {[%emt 0:00:21]} Nd7 {[%emt 0:10:21]} 16. d4 {[%emt 0:04:05]} Rfe8 {[%emt 0:05:43]} 17. Bd2 {[%emt 0:00:23]} Ne3 {[%emt 0:05:55]} 18. Nxd6 {[%emt 0:02:38]} cxd6 {[%emt 0:00:15]} 19. Bb4 {[%emt 0:01:13]} a5 {[%emt 0:03:29]} 20. Bxd6 {[%emt 0:01:30]} a4 {[%emt 0:00:51]} 21. Bxf4 {[%emt 0:01:39]} Ng4 {[%emt 0:01:01]} 22. Bxa4 {[%emt 0:06:01]} bxa4 {[%emt 0:03:42]} 23. c4 {[%emt 0:00:18]} Nb6 {[%emt 0:03:53]} 24. b3 {[%emt 0:04:25]} h6 {[%emt 0:07:22]} 25. Ne4 {[%emt 0:00:52]} axb3 {[%emt 0:01:26]} 26. axb3 {[%emt 0:10:38]} Rxa1 {[%emt 0:01:39]} 27. Rxa1 {[%emt 0:00:08]} Rxe4 {[%emt 0:00:13]} 28. g3 {[%emt 0:00:47]} Rxd4 {[%emt 0:02:11]} 29. Ra7 {[%emt 0:01:15]} Bxd5 {[%emt 0:03:20]} 30. cxd5 {[%emt 0:00:23]} Nxd5 {[%emt 0:00:19]} 31. Rd7 {[%emt 0:01:36]} Nxf4 {[%emt 0:00:28]} 32. Rxd4 {[%emt 0:00:10]} Ne2+ {[%emt 0:00:07]} 0-1